[Event "Titled Tuesday Blitz May 23 Late 2023"]
[White "Zhigalko, Sergei"]
[Black "Blitz"]
[WhiteFideId "13502956"]
[WhiteElo "2626"]
[BlackElo "2487"]
[Result "1-0"]
[Round "01"]
[TimeControl "180+2"]
[Date "2023.05.23"]
[WhiteClock "0:00:30"]
[BlackClock "0:00:10"]

1. e4 {[%clk 0:03:00]}  c5 {[%clk 0:02:59]} 2. Nf3 {[%clk 0:03:00]}  d6 {[%clk 0:02:59]} 3. d4 {[%clk 0:03:01]}  cxd4 {[%clk 0:03:00]} 4. Qxd4 {[%clk 0:03:02]}  Nc6 {[%clk 0:02:57]} 5. Bb5 {[%clk 0:03:01]}  Bd7 {[%clk 0:02:57]} 6. Bxc6 {[%clk 0:03:01]}  Bxc6 {[%clk 0:02:58]} 7. Nc3 {[%clk 0:03:02]}  Nf6 {[%clk 0:02:57]} 8. Bg5 {[%clk 0:03:02]}  e6 {[%clk 0:02:57]} 9. O-O-O {[%clk 0:03:02]}  Be7 {[%clk 0:02:58]} 10. Rhe1 {[%clk 0:03:02]}  O-O {[%clk 0:02:56]} 11. Kb1 {[%clk 0:03:02]}  Qa5 {[%clk 0:02:53]} 12. Qd2 {[%clk 0:03:02]}  Kh8 {[%clk 0:02:29]} 13. Nd4 {[%clk 0:02:59]}  Bd7 {[%clk 0:02:26]} 14. e5 {[%clk 0:02:43]}  Nd5 {[%clk 0:01:30]} 15. Bxe7 {[%clk 0:02:26]}  Nxe7 {[%clk 0:01:31]} 16. exd6 {[%clk 0:02:21]}  Ng6 {[%clk 0:01:27]} 17. Ne4 {[%clk 0:01:51]}  Qb6 {[%clk 0:01:18]} 18. h4 {[%clk 0:01:44]}  Ne5 {[%clk 0:00:53]} 19. Nb3 {[%clk 0:01:29]}  Nc4 {[%clk 0:00:36]} 20. Qd4 {[%clk 0:01:29]}  Qb5 {[%clk 0:00:27]} 21. Nec5 {[%clk 0:01:21]}  Bc6 {[%clk 0:00:27]} 22. a4 {[%clk 0:01:15]}  Qb4 {[%clk 0:00:26]} 23. c3 {[%clk 0:01:03]}  Na3+ {[%clk 0:00:21]} 24. Ka2 {[%clk 0:00:56]}  Qxd4 {[%clk 0:00:17]} 25. Nxd4 {[%clk 0:00:51]}  Nc4 {[%clk 0:00:16]} 26. Nxc6 {[%clk 0:00:49]}  bxc6 {[%clk 0:00:15]} 27. d7 {[%clk 0:00:48]}  Rab8 {[%clk 0:00:11]} 28. b3 {[%clk 0:00:47]}  Nb6 {[%clk 0:00:12]} 29. Rd6 {[%clk 0:00:45]}  Nd5 {[%clk 0:00:11]} 30. c4 {[%clk 0:00:38]}  Ne7 {[%clk 0:00:10]} 31. Red1 {[%clk 0:00:32]}  Rfd8 {[%clk 0:00:11]} 32. Ka3 {[%clk 0:00:30]}  Kg8 {[%clk 0:00:11]} 33. g4 {[%clk 0:00:30]}  Kf8 {[%clk 0:00:12]} 34. h5 {[%clk 0:00:30]}  f5 {[%clk 0:00:10]} 35. Nxe6+ {[%clk 0:00:30]} 1-0


[Site "https://www.chess.com"]

[Event "Titled Tuesday Blitz May 23 Late 2023"]
[White "Cordova, Emilio"]
[Black "Przybylski, Wojciech"]
[WhiteFideId "3801497"]
[BlackFideId "1117599"]
[WhiteElo "2607"]
[BlackElo "2222"]
[Result "1-0"]
[Round "01"]
[TimeControl "180+2"]
[Date "2023.05.23"]
[WhiteClock "0:00:42"]
[BlackClock "0:00:05"]

1. Nf3 {[%clk 0:03:00]}  Nf6 {[%clk 0:02:59]} 2. c4 {[%clk 0:03:01]}  e6 {[%clk 0:02:58]} 3. g3 {[%clk 0:03:00]}  b6 {[%clk 0:02:58]} 4. Bg2 {[%clk 0:03:01]}  Bb7 {[%clk 0:02:57]} 5. O-O {[%clk 0:03:02]}  Be7 {[%clk 0:02:57]} 6. Nc3 {[%clk 0:03:02]}  c5 {[%clk 0:02:57]} 7. Re1 {[%clk 0:03:02]}  Nc6 {[%clk 0:02:55]} 8. e4 {[%clk 0:02:59]}  d6 {[%clk 0:02:55]} 9. d4 {[%clk 0:02:59]}  cxd4 {[%clk 0:02:55]} 10. Nxd4 {[%clk 0:03:00]}  Nxd4 {[%clk 0:02:54]} 11. Qxd4 {[%clk 0:03:00]}  Qc8 {[%clk 0:02:51]} 12. b3 {[%clk 0:02:56]}  O-O {[%clk 0:02:50]} 13. Ba3 {[%clk 0:02:56]}  Rd8 {[%clk 0:02:49]} 14. Rad1 {[%clk 0:02:54]}  Ne8 {[%clk 0:02:42]} 15. h4 {[%clk 0:02:51]}  Bf6 {[%clk 0:02:41]} 16. Qe3 {[%clk 0:02:51]}  Qc6 {[%clk 0:02:37]} 17. f4 {[%clk 0:02:25]}  Rd7 {[%clk 0:02:26]} 18. Re2 {[%clk 0:02:22]}  Be7 {[%clk 0:02:20]} 19. g4 {[%clk 0:02:17]}  a6 {[%clk 0:02:15]} 20. Bb4 {[%clk 0:02:14]}  b5 {[%clk 0:02:08]} 21. cxb5 {[%clk 0:02:12]}  axb5 {[%clk 0:02:08]} 22. g5 {[%clk 0:02:12]}  Nc7 {[%clk 0:01:55]} 23. Rc1 {[%clk 0:01:58]}  Qa6 {[%clk 0:01:41]} 24. f5 {[%clk 0:01:58]}  exf5 {[%clk 0:01:30]} 25. exf5 {[%clk 0:01:57]}  Bxg2 {[%clk 0:01:29]} 26. Kxg2 {[%clk 0:01:57]}  Qb7+ {[%clk 0:01:27]} 27. Qf3 {[%clk 0:01:58]}  Na6 {[%clk 0:01:20]} 28. Qxb7 {[%clk 0:01:56]}  Rxb7 {[%clk 0:01:19]} 29. Nd5 {[%clk 0:01:57]}  Bf8 {[%clk 0:01:04]} 30. Be1 {[%clk 0:01:47]}  Nc5 {[%clk 0:01:02]} 31. Rd1 {[%clk 0:01:47]}  Rba7 {[%clk 0:00:57]} 32. Rdd2 {[%clk 0:01:47]}  Nd7 {[%clk 0:00:48]} 33. Bg3 {[%clk 0:01:46]}  Ne5 {[%clk 0:00:45]} 34. Bxe5 {[%clk 0:01:46]}  dxe5 {[%clk 0:00:45]} 35. Nb6 {[%clk 0:01:45]}  Re8 {[%clk 0:00:39]} 36. Kf3 {[%clk 0:01:42]}  Bc5 {[%clk 0:00:37]} 37. Nd7 {[%clk 0:01:41]}  Bb4 {[%clk 0:00:32]} 38. Rd5 {[%clk 0:01:39]}  Bc3 {[%clk 0:00:21]} 39. f6 {[%clk 0:01:29]}  b4 {[%clk 0:00:17]} 40. fxg7 {[%clk 0:01:28]}  Kxg7 {[%clk 0:00:16]} 41. Nf6 {[%clk 0:01:28]}  Rea8 {[%clk 0:00:13]} 42. Kg4 {[%clk 0:01:26]}  h6 {[%clk 0:00:10]} 43. Rc5 {[%clk 0:01:10]}  hxg5 {[%clk 0:00:09]} 44. hxg5 {[%clk 0:01:10]}  Bd4 {[%clk 0:00:09]} 45. Rc4 {[%clk 0:01:09]}  Bc3 {[%clk 0:00:09]} 46. Rh2 {[%clk 0:01:07]}  Rxa2 {[%clk 0:00:07]} 47. Rh7+ {[%clk 0:01:04]}  Kg6 {[%clk 0:00:07]} 48. Rh6+ {[%clk 0:01:03]}  Kg7 {[%clk 0:00:07]} 49. Nh5+ {[%clk 0:00:44]}  Kg8 {[%clk 0:00:07]} 50. Rc7 {[%clk 0:00:43]}  Rg2+ {[%clk 0:00:06]} 51. Kf5 {[%clk 0:00:43]}  Rf2+ {[%clk 0:00:06]} 52. Ke4 {[%clk 0:00:43]}  Kf8 {[%clk 0:00:05]} 53. Rh8# {[%clk 0:00:42]} 1-0


[Site "https://www.chess.com"]

[Event "Titled Tuesday Blitz May 23 Late 2023"]
[White "Seletsky, Grigory"]
[Black "Keymer, Vincent"]
[WhiteFideId "14112191"]
[BlackFideId "12940690"]
[WhiteElo "2491"]
[BlackElo "2669"]
[Result "1/2-1/2"]
[Round "01"]
[TimeControl "180+2"]
[Date "2023.05.23"]
[WhiteClock "0:00:16"]
[BlackClock "0:00:02"]

1. e4 {[%clk 0:02:33]}  c6 {[%clk 0:02:59]} 2. d4 {[%clk 0:02:31]}  d5 {[%clk 0:03:00]} 3. e5 {[%clk 0:02:30]}  Bf5 {[%clk 0:02:59]} 4. Be3 {[%clk 0:02:27]}  Qb6 {[%clk 0:02:54]} 5. Qc1 {[%clk 0:02:23]}  e6 {[%clk 0:02:53]} 6. Nd2 {[%clk 0:02:22]}  c5 {[%clk 0:02:52]} 7. Nb3 {[%clk 0:02:18]}  c4 {[%clk 0:02:47]} 8. Nd2 {[%clk 0:02:16]}  Nc6 {[%clk 0:02:35]} 9. c3 {[%clk 0:02:16]}  Rc8 {[%clk 0:02:21]} 10. Be2 {[%clk 0:02:14]}  h6 {[%clk 0:02:15]} 11. Ngf3 {[%clk 0:02:09]}  Nge7 {[%clk 0:02:15]} 12. O-O {[%clk 0:02:09]}  Bh7 {[%clk 0:02:15]} 13. Bd1 {[%clk 0:02:08]}  Nf5 {[%clk 0:02:09]} 14. Bc2 {[%clk 0:02:08]}  Be7 {[%clk 0:02:09]} 15. g4 {[%clk 0:02:05]}  Nxe3 {[%clk 0:01:53]} 16. fxe3 {[%clk 0:02:03]}  Bxc2 {[%clk 0:01:41]} 17. Qxc2 {[%clk 0:02:02]}  O-O {[%clk 0:01:42]} 18. Kg2 {[%clk 0:01:59]}  f6 {[%clk 0:01:33]} 19. exf6 {[%clk 0:01:58]}  Bxf6 {[%clk 0:01:23]} 20. e4 {[%clk 0:01:53]}  Qc7 {[%clk 0:00:58]} 21. e5 {[%clk 0:01:51]}  Bd8 {[%clk 0:00:50]} 22. Qg6 {[%clk 0:01:42]}  Qf7 {[%clk 0:00:49]} 23. Nh4 {[%clk 0:01:13]}  Qxg6 {[%clk 0:00:42]} 24. Nxg6 {[%clk 0:01:09]}  Re8 {[%clk 0:00:20]} 25. h4 {[%clk 0:01:08]}  Ne7 {[%clk 0:00:19]} 26. h5 {[%clk 0:01:03]}  Rc6 {[%clk 0:00:12]} 27. Nf3 {[%clk 0:01:01]}  Nxg6 {[%clk 0:00:06]} 28. hxg6 {[%clk 0:01:00]}  Rb6 {[%clk 0:00:07]} 29. Rf2 {[%clk 0:00:51]}  Rf8 {[%clk 0:00:07]} 30. Raf1 {[%clk 0:00:51]}  Be7 {[%clk 0:00:06]} 31. Kg3 {[%clk 0:00:39]}  a5 {[%clk 0:00:06]} 32. Ng1 {[%clk 0:00:37]}  a4 {[%clk 0:00:03]} 33. a3 {[%clk 0:00:33]}  Rb3 {[%clk 0:00:02]} 34. Rxf8+ {[%clk 0:00:33]}  Bxf8 {[%clk 0:00:03]} 35. Rf2 {[%clk 0:00:32]}  b5 {[%clk 0:00:03]} 36. Rc2 {[%clk 0:00:25]}  b4 {[%clk 0:00:02]} 37. axb4 {[%clk 0:00:24]}  Bxb4 {[%clk 0:00:03]} 38. Ne2 {[%clk 0:00:22]}  a3 {[%clk 0:00:04]} 39. bxa3 {[%clk 0:00:22]}  Bxa3 {[%clk 0:00:04]} 40. Kf3 {[%clk 0:00:18]}  Kf8 {[%clk 0:00:04]} 41. Ke3 {[%clk 0:00:19]}  Ke7 {[%clk 0:00:04]} 42. Kd2 {[%clk 0:00:19]}  Kd7 {[%clk 0:00:04]} 43. Ra2 {[%clk 0:00:19]}  Be7 {[%clk 0:00:02]} 44. Ra7+ {[%clk 0:00:17]}  Kd8 {[%clk 0:00:03]} 45. Ra8+ {[%clk 0:00:17]}  Kd7 {[%clk 0:00:02]} 46. Ra7+ {[%clk 0:00:17]}  Kd8 {[%clk 0:00:02]} 47. Ra8+ {[%clk 0:00:15]}  Kd7 {[%clk 0:00:02]} 48. Ra7+ {[%clk 0:00:16]} 1/2-1/2


[Site "https://www.chess.com"]

[Event "Titled Tuesday Blitz May 23 Late 2023"]
[White "Sychev, Klementy"]
[Black "Goncalves, Davi Sulzbacher"]
[WhiteFideId "4114060"]
[BlackFideId "2154510"]
[WhiteElo "2583"]
[BlackElo "2182"]
[Result "1-0"]
[Round "01"]
[TimeControl "180+2"]
[Date "2023.05.23"]
[WhiteClock "0:00:40"]
[BlackClock "0:00:05"]

1. e4 {[%clk 0:03:00]}  c5 {[%clk 0:02:57]} 2. Nf3 {[%clk 0:03:01]}  Nc6 {[%clk 0:02:56]} 3. d4 {[%clk 0:03:01]}  cxd4 {[%clk 0:02:56]} 4. Nxd4 {[%clk 0:03:01]}  Nf6 {[%clk 0:02:57]} 5. Nc3 {[%clk 0:03:02]}  e5 {[%clk 0:02:57]} 6. Ndb5 {[%clk 0:03:03]}  d6 {[%clk 0:02:58]} 7. Bg5 {[%clk 0:03:03]}  a6 {[%clk 0:02:58]} 8. Na3 {[%clk 0:03:03]}  b5 {[%clk 0:02:59]} 9. Bxf6 {[%clk 0:03:04]}  gxf6 {[%clk 0:02:59]} 10. Nd5 {[%clk 0:03:04]}  f5 {[%clk 0:02:59]} 11. g3 {[%clk 0:03:05]}  Bg7 {[%clk 0:02:50]} 12. exf5 {[%clk 0:03:03]}  Bxf5 {[%clk 0:02:49]} 13. Bg2 {[%clk 0:03:03]}  O-O {[%clk 0:02:47]} 14. Ne3 {[%clk 0:03:02]}  Nd4 {[%clk 0:02:34]} 15. Nxf5 {[%clk 0:02:45]}  Nxf5 {[%clk 0:02:35]} 16. Qd3 {[%clk 0:02:29]}  e4 {[%clk 0:02:27]} 17. Bxe4 {[%clk 0:02:24]}  Bxb2 {[%clk 0:02:16]} 18. O-O {[%clk 0:02:20]}  Bxa1 {[%clk 0:01:52]} 19. Rxa1 {[%clk 0:02:18]}  Qf6 {[%clk 0:01:52]} 20. Rd1 {[%clk 0:02:15]}  Ne7 {[%clk 0:01:16]} 21. Bxa8 {[%clk 0:02:13]}  Rxa8 {[%clk 0:01:14]} 22. Qxd6 {[%clk 0:02:13]}  Kg7 {[%clk 0:00:37]} 23. Kg2 {[%clk 0:01:35]}  Nf5 {[%clk 0:00:21]} 24. Qd5 {[%clk 0:01:23]}  Rc8 {[%clk 0:00:20]} 25. c4 {[%clk 0:01:23]}  b4 {[%clk 0:00:20]} 26. Nc2 {[%clk 0:01:23]}  Re8 {[%clk 0:00:20]} 27. Rd2 {[%clk 0:01:16]}  Qc3 {[%clk 0:00:12]} 28. c5 {[%clk 0:00:40]}  Re5 {[%clk 0:00:11]} 29. Qd8 {[%clk 0:00:40]}  Rxc5 {[%clk 0:00:05]} 30. Qg5+ {[%clk 0:00:40]} 1-0


[Site "https://www.chess.com"]

[Event "Titled Tuesday Blitz May 23 Late 2023"]
[White "Principe, Alexander"]
[Black "Talibov, Shiroghlan"]
[WhiteFideId "3804542"]
[BlackFideId "13429078"]
[WhiteElo "2203"]
[BlackElo "2188"]
[Result "0-1"]
[Round "01"]
[TimeControl "180+2"]
[Date "2023.05.23"]
[WhiteClock "0:02:48"]
[BlackClock "0:02:36"]

1. e4 {[%clk 0:02:59]}  Nf6 {[%clk 0:02:57]} 2. e5 {[%clk 0:02:59]}  Nd5 {[%clk 0:02:57]} 3. d4 {[%clk 0:02:59]}  d6 {[%clk 0:02:58]} 4. exd6 {[%clk 0:03:00]}  cxd6 {[%clk 0:02:58]} 5. Bd3 {[%clk 0:03:00]}  g6 {[%clk 0:02:58]} 6. Ne2 {[%clk 0:03:00]}  Bg7 {[%clk 0:02:59]} 7. a3 {[%clk 0:03:00]}  O-O {[%clk 0:02:58]} 8. c4 {[%clk 0:03:00]}  Nb6 {[%clk 0:02:58]} 9. Nbc3 {[%clk 0:02:59]}  Nc6 {[%clk 0:02:46]} 10. Be3 {[%clk 0:02:59]}  d5 {[%clk 0:02:43]} 11. c5 {[%clk 0:02:58]}  Nc4 {[%clk 0:02:43]} 12. b3 {[%clk 0:02:52]}  Nxe3 {[%clk 0:02:42]} 13. fxe3 {[%clk 0:02:53]}  e5 {[%clk 0:02:43]} 14. Bb5 {[%clk 0:02:51]}  exd4 {[%clk 0:02:41]} 15. exd4 {[%clk 0:02:52]}  Nxd4 {[%clk 0:02:41]} 16. Qd2 {[%clk 0:02:47]}  Nxe2 {[%clk 0:02:36]} 17. Qh6 {[%clk 0:02:48]} 0-1


[Site "https://www.chess.com"]

[Event "Titled Tuesday Blitz May 23 Late 2023"]
[White "Moroni, Luca Jr"]
[Black "cristianserban1"]
[WhiteFideId "865834"]
[WhiteElo "2569"]
[BlackElo "2462"]
[Result "0-1"]
[Round "01"]
[TimeControl "180+2"]
[Date "2023.05.23"]
[WhiteClock "0:00:35"]
[BlackClock "0:00:11"]

1. b3 {[%clk 0:03:00]}  d5 {[%clk 0:02:59]} 2. Bb2 {[%clk 0:03:00]}  Nf6 {[%clk 0:03:00]} 3. Nf3 {[%clk 0:02:59]}  Bf5 {[%clk 0:03:00]} 4. g3 {[%clk 0:02:59]}  e6 {[%clk 0:03:01]} 5. Bg2 {[%clk 0:03:00]}  c6 {[%clk 0:02:57]} 6. O-O {[%clk 0:03:00]}  h6 {[%clk 0:02:58]} 7. d3 {[%clk 0:03:00]}  Be7 {[%clk 0:02:58]} 8. Nbd2 {[%clk 0:02:59]}  O-O {[%clk 0:02:58]} 9. Re1 {[%clk 0:02:57]}  a5 {[%clk 0:02:58]} 10. a3 {[%clk 0:02:56]}  Nbd7 {[%clk 0:02:57]} 11. e4 {[%clk 0:02:57]}  Bh7 {[%clk 0:02:55]} 12. h3 {[%clk 0:02:56]}  Qb6 {[%clk 0:02:55]} 13. Rb1 {[%clk 0:02:54]}  Rfd8 {[%clk 0:02:55]} 14. Qe2 {[%clk 0:02:54]}  Qa6 {[%clk 0:02:55]} 15. e5 {[%clk 0:02:53]}  Ne8 {[%clk 0:02:55]} 16. a4 {[%clk 0:02:53]}  b5 {[%clk 0:02:48]} 17. Ra1 {[%clk 0:02:53]}  b4 {[%clk 0:02:42]} 18. Nd4 {[%clk 0:02:51]}  Nc7 {[%clk 0:02:32]} 19. f4 {[%clk 0:02:50]}  c5 {[%clk 0:02:28]} 20. N4f3 {[%clk 0:02:49]}  Nb6 {[%clk 0:02:29]} 21. Bf1 {[%clk 0:02:14]}  Rac8 {[%clk 0:02:24]} 22. Qg2 {[%clk 0:02:07]}  Qb7 {[%clk 0:02:09]} 23. g4 {[%clk 0:01:57]}  c4 {[%clk 0:02:05]} 24. dxc4 {[%clk 0:01:55]}  dxc4 {[%clk 0:02:06]} 25. Nxc4 {[%clk 0:01:56]}  Nxc4 {[%clk 0:02:06]} 26. Bxc4 {[%clk 0:01:57]}  Bxc2 {[%clk 0:02:00]} 27. f5 {[%clk 0:01:49]}  Be4 {[%clk 0:01:54]} 28. Rf1 {[%clk 0:01:47]}  Nd5 {[%clk 0:01:39]} 29. Rae1 {[%clk 0:01:30]}  Bc5+ {[%clk 0:01:31]} 30. Kh1 {[%clk 0:01:22]}  Ne3 {[%clk 0:01:30]} 31. Rxe3 {[%clk 0:01:23]}  Bxe3 {[%clk 0:01:31]} 32. fxe6 {[%clk 0:01:24]}  Rxc4 {[%clk 0:01:30]} 33. exf7+ {[%clk 0:01:16]}  Qxf7 {[%clk 0:01:30]} 34. bxc4 {[%clk 0:01:15]}  Rf8 {[%clk 0:01:25]} 35. e6 {[%clk 0:01:10]}  Qb7 {[%clk 0:00:28]} 36. Kh2 {[%clk 0:00:54]}  Bxf3 {[%clk 0:00:24]} 37. e7 {[%clk 0:00:53]}  Bf4+ {[%clk 0:00:18]} 38. Kg1 {[%clk 0:00:54]}  Bxg2 {[%clk 0:00:16]} 39. exf8=Q+ {[%clk 0:00:54]}  Kxf8 {[%clk 0:00:17]} 40. Rxf4+ {[%clk 0:00:55]}  Kg8 {[%clk 0:00:15]} 41. c5 {[%clk 0:00:54]}  Bxh3 {[%clk 0:00:13]} 42. Rf2 {[%clk 0:00:55]}  Qd5 {[%clk 0:00:13]} 43. Kh2 {[%clk 0:00:52]}  Bxg4 {[%clk 0:00:13]} 44. Rg2 {[%clk 0:00:52]}  Bf3 {[%clk 0:00:12]} 45. Rxg7+ {[%clk 0:00:52]}  Kf8 {[%clk 0:00:12]} 46. Rg3 {[%clk 0:00:47]}  Qd2+ {[%clk 0:00:12]} 47. Kh3 {[%clk 0:00:48]}  Qxb2 {[%clk 0:00:12]} 48. Rxf3+ {[%clk 0:00:48]}  Ke7 {[%clk 0:00:13]} 49. Kg4 {[%clk 0:00:49]}  Qd4+ {[%clk 0:00:13]} 50. Kf5 {[%clk 0:00:48]}  Qxc5+ {[%clk 0:00:13]} 51. Kg6 {[%clk 0:00:49]}  Qc3 {[%clk 0:00:14]} 52. Rf7+ {[%clk 0:00:49]}  Ke8 {[%clk 0:00:14]} 53. Ra7 {[%clk 0:00:49]}  Qc6+ {[%clk 0:00:13]} 54. Kh7 {[%clk 0:00:48]}  b3 {[%clk 0:00:13]} 55. Kh8 {[%clk 0:00:39]}  b2 {[%clk 0:00:12]} 56. Rf7 {[%clk 0:00:35]}  Kxf7 {[%clk 0:00:11]} 57. Kh7 {[%clk 0:00:34]}  b1=Q+ {[%clk 0:00:12]} 58. Kh8 {[%clk 0:00:35]}  Qe8# {[%clk 0:00:11]} 0-1


[Site "https://www.chess.com"]

[Event "Titled Tuesday Blitz May 23 Late 2023"]
[White "Mahdavi, Reza"]
[Black "Yeritsyan, Hayk"]
[WhiteFideId "12595926"]
[BlackFideId "13307320"]
[WhiteElo "2352"]
[BlackElo "2458"]
[Result "1-0"]
[Round "01"]
[TimeControl "180+2"]
[Date "2023.05.23"]
[WhiteClock "0:00:54"]
[BlackClock "0:00:02"]

1. e4 {[%clk 0:03:00]}  c6 {[%clk 0:02:57]} 2. d4 {[%clk 0:03:01]}  d5 {[%clk 0:02:57]} 3. e5 {[%clk 0:03:01]}  c5 {[%clk 0:02:57]} 4. dxc5 {[%clk 0:03:02]}  e6 {[%clk 0:02:58]} 5. a3 {[%clk 0:03:02]}  Bxc5 {[%clk 0:02:58]} 6. b4 {[%clk 0:03:01]}  Bb6 {[%clk 0:02:58]} 7. Nf3 {[%clk 0:02:46]}  Ne7 {[%clk 0:02:47]} 8. Bb2 {[%clk 0:02:47]}  Nbc6 {[%clk 0:02:45]} 9. Bd3 {[%clk 0:02:47]}  Ng6 {[%clk 0:02:45]} 10. b5 {[%clk 0:02:48]}  Nce7 {[%clk 0:02:37]} 11. g3 {[%clk 0:02:49]}  O-O {[%clk 0:02:29]} 12. Nbd2 {[%clk 0:02:48]}  f6 {[%clk 0:02:27]} 13. O-O {[%clk 0:02:49]}  Nxe5 {[%clk 0:02:26]} 14. Nxe5 {[%clk 0:02:38]}  fxe5 {[%clk 0:02:27]} 15. Bxe5 {[%clk 0:02:39]}  Bd7 {[%clk 0:02:22]} 16. Qe2 {[%clk 0:02:36]}  Nf5 {[%clk 0:02:19]} 17. Nb3 {[%clk 0:02:24]}  Qg5 {[%clk 0:02:12]} 18. Kh1 {[%clk 0:02:17]}  Rac8 {[%clk 0:02:09]} 19. Rae1 {[%clk 0:02:15]}  Kh8 {[%clk 0:02:08]} 20. a4 {[%clk 0:02:13]}  Bd8 {[%clk 0:01:38]} 21. f4 {[%clk 0:02:07]}  Qh6 {[%clk 0:01:36]} 22. Kg2 {[%clk 0:01:57]}  Bf6 {[%clk 0:01:33]} 23. Bxf5 {[%clk 0:01:43]}  Bxe5 {[%clk 0:01:33]} 24. fxe5 {[%clk 0:01:42]}  exf5 {[%clk 0:01:24]} 25. e6 {[%clk 0:01:42]}  Be8 {[%clk 0:01:24]} 26. Nd4 {[%clk 0:01:39]}  f4 {[%clk 0:01:22]} 27. Qe5 {[%clk 0:01:28]}  Bg6 {[%clk 0:01:14]} 28. e7 {[%clk 0:01:25]}  Rfe8 {[%clk 0:01:03]} 29. Rxf4 {[%clk 0:01:16]}  Be4+ {[%clk 0:01:00]} 30. Kg1 {[%clk 0:01:16]}  Qb6 {[%clk 0:00:52]} 31. Ref1 {[%clk 0:01:12]}  h6 {[%clk 0:00:41]} 32. Rf8+ {[%clk 0:01:06]}  Kh7 {[%clk 0:00:41]} 33. R1f7 {[%clk 0:00:58]}  Qg6 {[%clk 0:00:29]} 34. Ne6 {[%clk 0:00:55]}  Rxe7 {[%clk 0:00:07]} 35. Rxe7 {[%clk 0:00:53]}  Rxf8 {[%clk 0:00:02]} 36. Nxf8+ {[%clk 0:00:54]} 1-0


[Site "https://www.chess.com"]

[Event "Titled Tuesday Blitz May 23 Late 2023"]
[White "Senft, Sean"]
[Black "Sattarov, Bobir"]
[WhiteFideId "2044960"]
[BlackFideId "14203081"]
[WhiteElo "1989"]
[BlackElo "2351"]
[Result "1-0"]
[Round "01"]
[TimeControl "180+2"]
[Date "2023.05.23"]
[WhiteClock "0:00:23"]
[BlackClock "0:00:50"]

1. d4 {[%clk 0:02:59]}  Nf6 {[%clk 0:02:58]} 2. c4 {[%clk 0:03:00]}  e6 {[%clk 0:02:59]} 3. Nc3 {[%clk 0:03:00]}  Bb4 {[%clk 0:02:58]} 4. Nf3 {[%clk 0:03:01]}  b6 {[%clk 0:02:57]} 5. Bg5 {[%clk 0:03:01]}  h6 {[%clk 0:02:56]} 6. Bh4 {[%clk 0:03:01]}  Bb7 {[%clk 0:02:56]} 7. e3 {[%clk 0:03:01]}  c5 {[%clk 0:02:54]} 8. Bd3 {[%clk 0:03:01]}  cxd4 {[%clk 0:02:54]} 9. exd4 {[%clk 0:03:00]}  d5 {[%clk 0:02:54]} 10. cxd5 {[%clk 0:02:56]}  Qxd5 {[%clk 0:02:50]} 11. O-O {[%clk 0:02:42]}  Bxc3 {[%clk 0:02:50]} 12. bxc3 {[%clk 0:02:42]}  Nbd7 {[%clk 0:02:51]} 13. Re1 {[%clk 0:02:39]}  O-O {[%clk 0:02:50]} 14. Qe2 {[%clk 0:01:50]}  Rac8 {[%clk 0:02:49]} 15. Rac1 {[%clk 0:01:50]}  Nh5 {[%clk 0:02:43]} 16. Bg3 {[%clk 0:01:47]}  Nxg3 {[%clk 0:02:42]} 17. hxg3 {[%clk 0:01:47]}  Rc7 {[%clk 0:02:40]} 18. Bb1 {[%clk 0:01:41]}  Rfc8 {[%clk 0:02:38]} 19. Qd3 {[%clk 0:01:41]}  g6 {[%clk 0:02:36]} 20. Qe3 {[%clk 0:01:36]}  Kg7 {[%clk 0:02:33]} 21. Re2 {[%clk 0:01:26]}  b5 {[%clk 0:02:31]} 22. Rec2 {[%clk 0:01:26]}  Nb6 {[%clk 0:02:26]} 23. Qe5+ {[%clk 0:01:21]}  Qxe5 {[%clk 0:02:25]} 24. Nxe5 {[%clk 0:01:21]}  Be4 {[%clk 0:02:20]} 25. Rb2 {[%clk 0:01:18]}  Bxb1 {[%clk 0:02:20]} 26. Rbxb1 {[%clk 0:01:14]}  Rxc3 {[%clk 0:02:20]} 27. Rxc3 {[%clk 0:01:15]}  Rxc3 {[%clk 0:02:20]} 28. Rxb5 {[%clk 0:01:14]}  Rc1+ {[%clk 0:02:20]} 29. Kh2 {[%clk 0:01:14]}  Rc2 {[%clk 0:02:21]} 30. Ra5 {[%clk 0:01:14]}  Rc7 {[%clk 0:02:12]} 31. g4 {[%clk 0:01:08]}  Kf6 {[%clk 0:02:11]} 32. Kg3 {[%clk 0:01:07]}  g5 {[%clk 0:02:10]} 33. Kf3 {[%clk 0:01:04]}  Ke7 {[%clk 0:02:05]} 34. Ke4 {[%clk 0:01:02]}  Kd6 {[%clk 0:02:03]} 35. Ra6 {[%clk 0:01:00]}  f6 {[%clk 0:01:56]} 36. Nd3 {[%clk 0:00:56]}  Ke7 {[%clk 0:01:55]} 37. Nb4 {[%clk 0:00:52]}  Kd7 {[%clk 0:01:53]} 38. g3 {[%clk 0:00:51]}  Nc4 {[%clk 0:01:47]} 39. f4 {[%clk 0:00:46]}  Nd6+ {[%clk 0:01:44]} 40. Kd3 {[%clk 0:00:44]}  Rb7 {[%clk 0:01:40]} 41. a3 {[%clk 0:00:42]}  Nb5 {[%clk 0:01:39]} 42. Kc4 {[%clk 0:00:41]}  Nd6+ {[%clk 0:01:33]} 43. Kd3 {[%clk 0:00:41]}  Rc7 {[%clk 0:01:29]} 44. d5 {[%clk 0:00:34]}  Rb7 {[%clk 0:01:18]} 45. dxe6+ {[%clk 0:00:31]}  Kxe6 {[%clk 0:01:19]} 46. f5+ {[%clk 0:00:31]}  Kd7 {[%clk 0:01:18]} 47. Nd5 {[%clk 0:00:31]}  Rb3+ {[%clk 0:01:18]} 48. Kd4 {[%clk 0:00:30]}  Rxg3 {[%clk 0:01:15]} 49. Nxf6+ {[%clk 0:00:31]}  Ke7 {[%clk 0:01:12]} 50. Nd5+ {[%clk 0:00:31]}  Kd7 {[%clk 0:01:07]} 51. Rxa7+ {[%clk 0:00:27]}  Kc6 {[%clk 0:01:08]} 52. Ra6+ {[%clk 0:00:26]}  Kd7 {[%clk 0:01:06]} 53. Nf6+ {[%clk 0:00:21]}  Kc7 {[%clk 0:01:04]} 54. Rxd6 {[%clk 0:00:20]}  Rxa3 {[%clk 0:00:58]} 55. Rd7+ {[%clk 0:00:19]}  Kc6 {[%clk 0:00:58]} 56. Rh7 {[%clk 0:00:19]}  Ra4+ {[%clk 0:00:58]} 57. Ke5 {[%clk 0:00:20]}  Ra5+ {[%clk 0:00:56]} 58. Ke6 {[%clk 0:00:20]}  Ra1 {[%clk 0:00:55]} 59. Rxh6 {[%clk 0:00:20]}  Re1+ {[%clk 0:00:55]} 60. Kf7 {[%clk 0:00:20]}  Kd6 {[%clk 0:00:55]} 61. Kg6 {[%clk 0:00:20]}  Ke5 {[%clk 0:00:54]} 62. Kxg5 {[%clk 0:00:21]}  Ra1 {[%clk 0:00:53]} 63. Nh5 {[%clk 0:00:21]}  Ra8 {[%clk 0:00:52]} 64. Re6+ {[%clk 0:00:21]}  Kd5 {[%clk 0:00:52]} 65. Re1 {[%clk 0:00:21]}  Rg8+ {[%clk 0:00:51]} 66. Kf4 {[%clk 0:00:21]}  Kd4 {[%clk 0:00:51]} 67. f6 {[%clk 0:00:22]}  Rf8 {[%clk 0:00:51]} 68. g5 {[%clk 0:00:22]}  Kd5 {[%clk 0:00:50]} 69. Kf5 {[%clk 0:00:23]} 1-0


[Site "https://www.chess.com"]